Workbook

Sheet Planung 2024
E1: Einnahmen | G1: Ausgaben | J1: Gesamt
D2: Teilnehmer | E2: TN | F2: Kosten/TN | G2: Speisen/Getränke | H2: Referent | I2: Sonstiges | J2: Einnahmen | K2: Ausgaben
A3: Januar | C3: - | J3: =E3*F3 -> 0 | K3: =G3+H3+I3 -> 0
A4: Februar | C4: Jahreshauptversammlung | H4: 500 | J4: =E4*F4 -> 0 | K4: =G4+H4+I4 -> 500
A5: März | C5: - | J5: 0 | K5: 0
A6: April | C6: Bowling mit Wj | I6: 300 | J6: 0 | K6: 300
A7: Mai | C7: Freies Treffen | J7: 0 | K7: 0
A8: Juni | C8: Schulung / Weiterbildung I | D8: 10 | E8: 10 | F8: 120 | G8: 200 | H8: 1000 | I8: 1000 | J8: 1200 | K8: 2200
A9: August | C9: Sommertreffen | D9: 20 | I9: 2000 | J9: 0 | K9: 2000
A10: September | C10: Bundeskongress | D10: 6 | I10: 600 | J10: 0 | K10: 600
A11: Oktober | C11: - | J11: 0 | K11: 0
A12: November | C12: Schulung / Weiterbildung I | D12: 10 | E12: 10 | F12: 120 | G12: 200 | H12: 1000 | I12: 1000 | J12: 1200 | K12: 2200
C13: Weihnachtstreffen | I13: 200 | J13: 0 | K13: 200
A14: Dezember | C14: - | J14: =E14*F14 -> 0 | K14: =G14+H14+I14 -> 0
A15: Gesamt | J15: =SUM(J3:J13) -> 2400 | K15: =SUM(K3:K13) -> 8000

Sheet Schulung (April)
A1: Kalkulation der Schulung am 28.04.2023
A3: Kosten pro TN: | B3: 115
A4: Kosten für Speisen/Getränke: | B4: 54.5
A5: Kosten für Referent: | B5: 761.6
A7: TN | B7: Einnahmen | C7: Ausgaben | D7: Zuschuss vom Verein
A8: 1 | B8: =A8*$B$3 -> 115 | C8: =($B$4*(A8+2))+$B$5 -> 925.1 | D8: =C8-B8 -> 810.1
A9: 2 | B9: 230 | C9: 979.6 | D9: 749.6
A10: 3 | B10: 345 | C10: 1034.1 | D10: 689.1
A11: 4 | B11: 460 | C11: 1088.6 | D11: 628.6
A12: 5 | B12: 575 | C12: 1143.1 | D12: 568.1
A13: 6 | B13: =A13*$B$3 -> 690 | C13: =($B$4*(A13+2))+$B$5 -> 1197.6 | D13: =C13-B13 -> 507.6
A14: 7 | B14: =A14*$B$3 -> 805 | C14: =($B$4*(A14+2))+$B$5 -> 1252.1 | D14: =C14-B14 -> 447.1
A15: 8 | B15: 920 | C15: 1306.6 | D15: 386.6
A16: 9 | B16: 1035 | C16: 1361.1 | D16: 326.1
A17: 10 | B17: 1150 | C17: 1415.6 | D17: 265.6
A18: 11 | B18: 1265 | C18: 1470.1 | D18: 205.1
A19: 12 | B19: 1380 | C19: 1524.6 | D19: 144.6
A20: 13 | B20: 1495 | C20: 1579.1 | D20: 84.1
A21: 14 | B21: 1610 | C21: 1633.6 | D21: 23.6
A22: 15 | B22: 1725 | C22: 1688.1 | D22: -36.9

Sheet Segway-Tour (Mai)
A1: Kalkulation der Segway-Tour am 06.05.2023 (20 TN) | E1: Kalkulation der Segway-Tour am 06.05.2023 (geändert auf 12 TN)
A3: Kosten pro TN: | B3: 60 | E3: Kosten pro TN: | F3: 64
A4: Angebotskosten: | B4: =1280*1.19 -> 1523.2 | E4: Angebotskosten: | F4: 913.92
A5: Kosten für zz. Guide ab 11 TN: | B5: =150*1.19 -> 178.5 | E5: Kosten für zz. Guide ab 11 TN: | F5: =150*1.19 -> 178.5
A7: TN | B7: Einnahmen | C7: Ausgaben | D7: Zuschuss vom Verein | E7: TN | F7: Einnahmen | G7: Ausgaben | H7: Zuschuss vom Verein
A8: 1 | B8: =A8*$B$3 -> 60 | C8: =$B$4 -> 1523.2 | D8: =C8-B8 -> 1463.2 | E8: 1 | F8: =E8*$B$3 -> 60 | G8: =$F$4 -> 913.92 | H8: =G8-F8 -> 853.92
A9: 2 | B9: 120 | C9: =$B$4 -> 1523.2 | D9: 1403.2 | E9: 2 | F9: 120 | G9: =$F$4 -> 913.92 | H9: 793.92
A10: 3 | B10: 180 | C10: 1523.2 | D10: 1343.2 | E10: 3 | F10: 180 | G10: 913.92 | H10: 733.92
A11: 4 | B11: 240 | C11: 1523.2 | D11: 1283.2 | E11: 4 | F11: 240 | G11: 913.92 | H11: 673.92
A12: 5 | B12: 300 | C12: 1523.2 | D12: 1223.2 | E12: 5 | F12: 300 | G12: 913.92 | H12: 613.92
A13: 6 | B13: =A13*$B$3 -> 360 | C13: 1523.2 | D13: =C13-B13 -> 1163.2 | E13: 6 | F13: =E13*$B$3 -> 360 | G13: 913.92 | H13: =G13-F13 -> 553.92
A14: 7 | B14: =A14*$B$3 -> 420 | C14: 1523.2 | D14: =C14-B14 -> 1103.2 | E14: 7 | F14: =E14*$B$3 -> 420 | G14: 913.92 | H14: =G14-F14 -> 493.92
A15: 8 | B15: 480 | C15: 1523.2 | D15: 1043.2 | E15: 8 | F15: 480 | G15: 913.92 | H15: 433.92
A16: 9 | B16: 540 | C16: 1523.2 | D16: 983.2 | E16: 9 | F16: 540 | G16: 913.92 | H16: 373.92
A17: 10 | B17: 600 | C17: 1523.2 | D17: 923.2 | E17: 10 | F17: 600 | G17: 913.92 | H17: 313.92
A18: 11 | B18: 660 | C18: 1523.2 | D18: 863.2 | E18: 11 | F18: 660 | G18: 913.92 | H18: 253.92
A19: 12 | B19: 720 | C19: 1523.2 | D19: 803.2 | E19: 12 | F19: 720 | G19: 913.92 | H19: 193.92
A20: 13 | B20: 780 | C20: =$B$4+$B$5 -> 1701.7 | D20: 921.7 | E20: 13 | F20: 780 | G20: =$F$4+$F$5+((E20-12)*64*1.19) -> 1168.58 | H20: 388.58
A21: 14 | B21: 840 | C21: =$B$4+$B$5 -> 1701.7 | D21: 861.7 | E21: 14 | F21: 840 | G21: =$F$4+$F$5+((E21-12)*64*1.19) -> 1244.74 | H21: 404.74
A22: 15 | B22: 900 | C22: 1701.7 | D22: 801.7 | E22: 15 | F22: 900 | G22: 1320.9 | H22: 420.9
A23: 16 | B23: 960 | C23: 1701.7 | D23: =C23-B23 -> 741.7 | E23: 16 | F23: 960 | G23: 1397.06 | H23: 437.06
A24: 17 | B24: 1020 | C24: 1701.7 | D24: 681.7 | E24: 17 | F24: 1020 | G24: 1473.22 | H24: 453.22
A25: 18 | B25: 1080 | C25: 1701.7 | D25: 621.7 | E25: 18 | F25: 1080 | G25: 1549.38 | H25: 469.38
A26: 19 | B26: 1140 | C26: 1701.7 | D26: 561.7 | E26: 19 | F26: 1140 | G26: 1625.54 | H26: 485.54
A27: 20 | B27: 1200 | C27: 1701.7 | D27: 501.7 | E27: 20 | F27: 1200 | G27: 1701.7 | H27: 501.7
A29: bei Reduzierung der Teilnehmer 7 Tage vorher | E29: bei Reduzierung der Teilnehmer 7 Tage vorher
A31: TN | B31: Einnahmen | C31: Ausgaben | D31: Zuschuss vom Verein | E31: TN | F31: Einnahmen | G31: Ausgaben | H31: Zuschuss vom Verein
A32: 1 | B32: =A32*$B$3 -> 60 | C32: =64*A32*1.19 -> 76.16 | D32: =C32-B32 -> 16.16 | E32: 1 | F32: =E32*$B$3 -> 60 | G32: =64*E32*1.19 -> 76.16 | H32: =G32-F32 -> 16.16
A33: 2 | B33: 120 | C33: =64*A33*1.19 -> 152.32 | D33: 32.32 | E33: 2 | F33: 120 | G33: =64*E33*1.19 -> 152.32 | H33: 32.32
A34: 3 | B34: 180 | C34: 228.48 | D34: 48.48 | E34: 3 | F34: 180 | G34: 228.48 | H34: 48.48
A35: 4 | B35: 240 | C35: 304.64 | D35: 64.64 | E35: 4 | F35: 240 | G35: 304.64 | H35: 64.64
A36: 5 | B36: 300 | C36: 380.8 | D36: 80.8 | E36: 5 | F36: 300 | G36: 380.8 | H36: 80.8
A37: 6 | B37: =A37*$B$3 -> 360 | C37: 456.96 | D37: =C37-B37 -> 96.96 | E37: 6 | F37: =E37*$B$3 -> 360 | G37: 456.96 | H37: =G37-F37 -> 96.96
A38: 7 | B38: =A38*$B$3 -> 420 | C38: 533.12 | D38: =C38-B38 -> 113.12 | E38: 7 | F38: =E38*$B$3 -> 420 | G38: 533.12 | H38: =G38-F38 -> 113.12
A39: 8 | B39: 480 | C39: 609.28 | D39: 129.28 | E39: 8 | F39: 480 | G39: 609.28 | H39: 129.28
A40: 9 | B40: 540 | C40: 685.44 | D40: 145.44 | E40: 9 | F40: 540 | G40: 685.44 | H40: 145.44
A41: 10 | B41: 600 | C41: 761.6 | D41: 161.6 | E41: 10 | F41: 600 | G41: 761.6 | H41: 161.6
A42: 11 | B42: 660 | C42: 837.76 | D42: 177.76 | E42: 11 | F42: 660 | G42: 837.76 | H42: 177.76
A43: 12 | B43: 720 | C43: 913.92 | D43: 193.92 | E43: 12 | F43: 720 | G43: 913.92 | H43: 193.92
A46: Kosten bei Stornierung bis 4 Wochen vorher | C46: 0.1 | D46: =B4*0.1 -> 152.32 | E46: Kosten bei Stornierung bis 4 Wochen vorher | G46: 0.1 | H46: =F4*0.1 -> 91.392
A47: 2023-04-07 | E47: 2023-04-07
A48: Kosten bei Stornierung bis 2 Wochen vorher | C48: 0.5 | D48: =B4*0.5 -> 761.6 | E48: Kosten bei Stornierung bis 2 Wochen vorher | G48: 0.5 | H48: =F4*0.5 -> 456.96
A49: 2023-04-21 | E49: 2023-04-21
A50: Kosten bei Stornierung bis 1 Woche vorher | C50: 0.75 | D50: =B4*0.75 -> 1142.4 | E50: Kosten bei Stornierung bis 1 Woche vorher | G50: 0.75 | H50: =F4*0.75 -> 685.44
A51: 2023-04-28 | E51: 2023-04-28
A52: Reduzierung der Teilnehmer bis 7 Tage vorher kostenfrei. | E52: Reduzierung der Teilnehmer bis 7 Tage vorher kostenfrei.
A53: 2023-04-28 | E53: 2023-04-28
A55: Kostenübernahme vom Verein: | E55: Kostenübernahme vom Verein:
A56: Die Übernahme von 19% des Einzelnettopreises und eine eventuell zusätzlicher Guide | E56: Die Übernahme von 19% des Einzelnettopreises und eine eventuell zusätzlicher Guide
A57: würde durch den Verein bezahlt | E57: würde durch den Verein bezahlt
